fUST/lending_fUST_20250206
["ID","MTS","AMOUNT","RATE_DAILY","PERIOD"]
[351795918,1738791042342,-1530.29,0.00013698,2]
[351795919,1738791042351,-500.0,0.00013698,2]
[351795920,1738791042363,-887.02,0.00013698,2]
[351795921,1738791042374,-2277.66,0.00013698,2]
[351795922,1738791042386,-500.0,0.00013698,2]
[351795923,1738791042396,-500.0,0.00013698,2]
[351795924,1738791042407,-500.0,0.00013698,2]
[351795925,1738791042417,-500.0,0.00013698,2]
[351795926,1738791042427,-500.0,0.00013698,2]
[351795927,1738791042438,-500.0,0.00013698,2]
[351795928,1738791042450,-1283.92,0.00013698,2]
[351795929,1738791042461,-500.0,0.00013698,2]
[351795930,1738791042471,-500.0,0.00013698,2]
[351795931,1738791042482,-540.18,0.00013698,2]
[351795932,1738791042492,-500.0,0.00013698,2]
[351795933,1738791042502,-500.0,0.00013698,2]
[351795934,1738791042513,-500.0,0.00013698,2]
[351795935,1738791042677,-712.18,0.00013698,2]
[351795936,1738791042706,-500.0,0.00013698,2]
[351795937,1738791042716,-535.69569744,0.00013698,2]
[351795938,1738791042728,-683.41,0.00013698,2]
[351795939,1738791042739,-500.0,0.00013698,2]
[351795940,1738791042749,-500.0,0.00013698,2]
[351795941,1738791042759,-500.0,0.00013698,2]
[351795942,1738791042768,-500.0,0.00013698,2]
[351795943,1738791042778,-500.0,0.00013698,2]
[351795944,1738791042787,-500.0,0.00013698,2]
[351795945,1738791042796,-500.0,0.00013698,2]
[351795946,1738791042805,-500.0,0.00013698,2]
[351795947,1738791042815,-500.0,0.00013698,2]
[351795948,1738791042825,-500.0,0.00013698,2]
[351795949,1738791042834,-500.0,0.00013698,2]
[351795950,1738791042845,-500.0,0.00013698,2]
[351795951,1738791042855,-500.0,0.00013698,2]
[351795952,1738791042864,-500.0,0.00013698,2]
[351795953,1738791042873,-500.0,0.00013698,2]
[351795954,1738791042883,-500.0,0.00013698,2]
[351795955,1738791042892,-500.0,0.00013698,2]
[351795956,1738791042902,-500.0,0.00013698,2]
[351795957,1738791042911,-355.19626421,0.00013698,2]
[351795958,1738791042920,-500.0,0.00013698,2]
[351795959,1738791042930,-1063.56,0.00013698,2]
[351795960,1738791042940,-2411.97,0.00013698,2]
[351795961,1738791042950,-500.0,0.00013698,2]
[351795962,1738791042960,-500.0,0.00013698,2]
[351795963,1738791042970,-500.0,0.00013698,2]
[351795964,1738791042979,-500.0,0.00013698,2]
[351795965,1738791042989,-500.8528102,0.00013698,2]
[351795966,1738791042998,-278.09624328,0.00013698,2]
[351795967,1738791043008,-500.0,0.00013698,2]
[351795968,1738791043018,-500.22088784,0.00013698,2]
[351795969,1738791043028,-899.87,0.00013698,2]
[351795970,1738791043039,-500.0,0.00013698,2]
[351795971,1738791043049,-500.0,0.00013698,2]
[351795972,1738791043059,-500.0,0.00013698,2]
[351795973,1738791043068,-500.0,0.00013698,2]
[351795974,1738791043078,-1474.38,0.00013698,2]
[351795975,1738791043087,-608.82,0.00013698,2]
[351795976,1738791043097,-500.0,0.00013698,2]
[351795977,1738791043106,-232.44990168,0.00013698,2]
[351795978,1738791043116,-500.0,0.00013698,2]
[351795979,1738791043125,-1219.23,0.00013698,2]
[351795980,1738791043134,-440.43738262,0.00013698,2]
[351795981,1738791043143,-500.0,0.00013698,2]
[351795982,1738791043153,-584.99,0.00013698,2]
[351795984,1738791043163,-500.0,0.00013698,2]
[351795985,1738791043172,-1760.08,0.00013698,2]
[351795986,1738791043182,-500.0,0.00013698,2]
[351795987,1738791043196,-501.22673616,0.00013698,2]
[351795988,1738791043207,-500.0,0.00013698,2]
[351795989,1738791043217,-500.0,0.00013698,2]
[351795990,1738791043228,-502.23891831,0.00013698,2]
[351795991,1738791043238,-709.85,0.00013698,2]
[351795992,1738791043247,-500.0,0.00013698,2]
[351795993,1738791043259,-500.0,0.00013698,2]
[351795994,1738791043268,-500.0,0.00013698,2]
[351795995,1738791043278,-500.0,0.00013698,2]
[351795996,1738791043287,-719.65,0.00013698,2]
[351795997,1738791043298,-1443.0,0.00013698,2]
[351795998,1738791043308,-863.74,0.00013698,2]
[351795999,1738791043318,-530.49,0.00013698,2]
[351796000,1738791043328,-500.0,0.00013698,2]
[351796001,1738791043338,-500.0,0.00013698,2]
[351796002,1738791043348,-500.0,0.00013698,2]
[351796003,1738791043357,-500.0,0.00013698,2]
[351796004,1738791043366,-3741.14,0.00013698,2]
[351796005,1738791043376,-500.0,0.00013698,2]
[351796006,1738791043385,-1573.04,0.00013698,2]
[351796007,1738791043395,-405.8795387,0.00013698,2]
[351796008,1738791043404,-725.45,0.00013698,2]
[351796009,1738791043413,-500.0,0.00013698,2]
[351796010,1738791043422,-500.0,0.00013698,2]
[351796011,1738791043432,-514.85,0.00013698,2]
[351796012,1738791043442,-1488.32,0.00013698,2]
[351796014,1738791043452,-500.0,0.00013698,2]
[351796016,1738791043463,-500.0,0.00013698,2]
[351796017,1738791043473,-500.0,0.00013698,2]
[351796018,1738791043482,-3850.61,0.00013698,2]
[351796019,1738791043492,-500.0,0.00013698,2]
[351796020,1738791043501,-500.0,0.00013698,2]
[351796021,1738791043511,-500.0,0.00013698,2]
[351796022,1738791043523,-500.0,0.00013698,2]
[351796023,1738791043534,-511.67358419,0.00013698,2]
[351796024,1738791043544,-500.0,0.00013698,2]
[351796025,1738791043554,-414.51564704,0.00013698,2]
[351796027,1738791043567,-500.0,0.00013698,2]
[351796029,1738791043576,-1297.11,0.00013698,2]
[351796031,1738791043586,-503.0661891,0.00013698,2]
[351796033,1738791043595,-500.0,0.00013698,2]
[351796035,1738791043605,-500.0,0.00013698,2]
[351796037,1738791043615,-500.0,0.00013698,2]
[351796038,1738791043625,-500.0,0.00013698,2]
[351796039,1738791043636,-632.4,0.00013698,2]
[351796040,1738791043651,-535.55275327,0.00013698,2]
[351796041,1738791043660,-500.0,0.00013698,2]
[351796042,1738791043671,-500.0,0.00013698,2]
[351796044,1738791043681,-680.14,0.00013698,2]
[351796046,1738791043692,-680.14,0.00013698,2]
[351796048,1738791043702,-680.14,0.00013698,2]
[351796050,1738791043712,-680.14,0.00013698,2]
[351796052,1738791043722,-680.14,0.00013698,2]
[351796054,1738791043732,-680.14,0.00013698,2]
[351796056,1738791043743,-500.0,0.00013698,2]
[351796058,1738791043752,-680.14,0.00013698,2]
[351796060,1738791043762,-680.14,0.00013698,2]
[351796062,1738791043771,-680.14,0.00013698,2]
[351796063,1738791043781,-680.14,0.00013698,2]
[351796064,1738791043791,-680.14,0.00013698,2]
[351796065,1738791043800,-680.14,0.00013698,2]
[351796066,1738791043812,-680.14,0.00013698,2]
[351796067,1738791043822,-680.14,0.00013698,2]
[351796068,1738791043831,-500.0,0.00013698,2]
[351796069,1738791043841,-680.14,0.00013698,2]
[351796070,1738791043850,-680.14,0.00013698,2]
[351796071,1738791043859,-680.14,0.00013698,2]
[351796072,1738791043870,-500.0,0.00013698,2]
[351796073,1738791043879,-680.14,0.00013698,2]
[351796074,1738791043890,-680.14,0.00013698,2]
[351796075,1738791043900,-680.14,0.00013698,2]
[351796076,1738791043910,-680.14,0.00013698,2]
[351796077,1738791043920,-680.14,0.00013698,2]
[351796078,1738791043929,-680.14,0.00013698,2]
[351796079,1738791043939,-680.31609466,0.00013698,2]
[351796080,1738791043949,-500.0,0.00013698,2]
[351796081,1738791043959,-587.01,0.00013698,2]
[351796082,1738791043969,-500.0,0.00013698,2]
[351796083,1738791043979,-500.0,0.00013698,2]
[351796084,1738791043989,-500.0,0.00013698,2]
[351796085,1738791043999,-500.0,0.00013698,2]
[351796086,1738791044009,-500.0,0.00013698,2]
[351796087,1738791044018,-500.0,0.00013698,2]
[351796088,1738791044028,-500.0,0.00013698,2]
[351796089,1738791044037,-500.0,0.00013698,2]
[351796090,1738791044047,-500.43706192,0.00013698,2]
[351796091,1738791044057,-500.0,0.00013698,2]
[351796092,1738791044067,-546.55,0.00013698,2]
[351796093,1738791044077,-500.0,0.00013698,2]
[351796094,1738791044087,-766.2,0.00013698,2]
[351796095,1738791044101,-1041.24,0.00013698,2]
[351796096,1738791044111,-500.0,0.00013698,2]
[351796097,1738791044121,-1018.91,0.00013698,2]
[351796098,1738791044131,-500.0,0.00013698,2]
[351796099,1738791044141,-500.0,0.00013698,2]
[351796100,1738791044150,-2339.06,0.00013698,2]
[351796101,1738791044160,-500.0,0.00013698,2]
[351796102,1738791044170,-500.0,0.00013698,2]
[351796103,1738791044183,-1875.75,0.00013698,2]
[351796104,1738791044203,-500.0,0.00013698,2]
[351796105,1738791044220,-500.0,0.00013698,2]
[351796106,1738791044231,-500.0,0.00013698,2]
[351796107,1738791044243,-754.58,0.00013698,2]
[351796108,1738791044252,-316.12726998,0.00013698,2]
[351796109,1738791044262,-794.26,0.00013698,2]
[351796110,1738791044272,-833.97,0.00013698,2]
[351796111,1738791044282,-500.0,0.00013698,2]
[351796112,1738791044292,-500.0,0.00013698,2]
[351796113,1738791044301,-501.12136402,0.00013698,2]
[351796114,1738791044311,-967.96,0.00013698,2]
[351796115,1738791044321,-500.0,0.00013698,2]
[351796116,1738791044331,-500.0,0.00013698,2]
[351796117,1738791044341,-500.0,0.00013698,2]
[351796118,1738791044351,-635.58214511,0.00013698,2]
[351796119,1738791044361,-500.0,0.00013698,2]
[351796120,1738791044371,-524.27,0.00013698,2]
[351796121,1738791044380,-1147.83,0.00013698,2]
[351796122,1738791044390,-500.0,0.00013698,2]
[351796123,1738791044400,-500.0,0.00013698,2]
[351796124,1738791044410,-500.0,0.00013698,2]
[351796125,1738791044420,-814.12,0.00013698,2]
[351796126,1738791044430,-500.0,0.00013698,2]
[351796127,1738791044440,-500.0,0.00013698,2]
[351796128,1738791044450,-500.0,0.00013698,2]
[351796129,1738791044460,-500.0,0.00013698,2]
[351796130,1738791044470,-500.0,0.00013698,2]
[351796131,1738791044481,-500.0,0.00013698,2]
[351796132,1738791044493,-500.0,0.00013698,2]
[351796133,1738791044502,-500.0,0.00013698,2]
[351796134,1738791044512,-669.39,0.00013698,2]
[351796135,1738791044522,-500.0,0.00013698,2]
[351796136,1738791044532,-500.0,0.00013698,2]
[351796137,1738791044541,-505.51740772,0.00013698,2]
[351796138,1738791044553,-500.0,0.00013698,2]
[351796139,1738791044563,-500.0,0.00013698,2]
[351796140,1738791044572,-500.0,0.00013698,2]
[351796141,1738791044583,-500.0,0.00013698,2]
[351796142,1738791044592,-4294.09,0.00013698,2]
[351796143,1738791044602,-500.0,0.00013698,2]
[351796144,1738791044611,-500.0,0.00013698,2]
[351796145,1738791044621,-523.48,0.00013698,2]
[351796146,1738791044630,-504.90464483,0.00013698,2]
[351796147,1738791044641,-486.50431685,0.00013698,2]
[351796148,1738791044655,-500.0,0.00013698,2]
[351796149,1738791044665,-500.0,0.00013698,2]
[351796150,1738791044675,-500.0,0.00013698,2]
[351796151,1738791044685,-234.74096042,0.00013698,2]
[351796152,1738791044695,-682.39,0.00013698,2]
[351796153,1738791044705,-500.0,0.00013698,2]
[351796154,1738791044715,-500.0,0.00013698,2]
[351796155,1738791044725,-500.0,0.00013698,2]
[351796156,1738791044734,-500.0,0.00013698,2]
[351796157,1738791044744,-284.45020118,0.00013698,2]
[351796158,1738791044755,-500.0,0.00013698,2]
[351796159,1738791044765,-1052.83,0.00013698,2]
[351796160,1738791044775,-500.0,0.00013698,2]
[351796161,1738791044785,-500.0,0.00013698,2]
[351796162,1738791044796,-500.0,0.00013698,2]
[351796163,1738791044806,-500.0,0.00013698,2]
[351796164,1738791044818,-500.0,0.00013698,2]
[351796165,1738791044827,-573.02,0.00013698,2]
[351796166,1738791044837,-500.0,0.00013698,2]
[351796167,1738791044846,-500.0,0.00013698,2]
[351796168,1738791044855,-518.82305619,0.00013698,2]
[351796169,1738791044865,-500.0,0.00013698,2]
[351796170,1738791044875,-500.0,0.00013698,2]
[351796171,1738791044886,-500.0,0.00013698,2]
[351796172,1738791044896,-1559.82,0.00013698,2]
[351796173,1738791044906,-500.0,0.00013698,2]
[351796174,1738791044916,-500.0,0.00013698,2]
[351796175,1738791044927,-500.0,0.00013698,2]
[351796176,1738791044936,-501.06685821,0.00013698,2]
[351796177,1738791044946,-500.0,0.00013698,2]
[351796178,1738791044955,-500.0,0.00013698,2]
[351796179,1738791044965,-500.0,0.00013698,2]
[351796180,1738791044975,-500.0,0.00013698,2]
[351796181,1738791044985,-1170.03,0.00013698,2]
[351796182,1738791044995,-500.0,0.00013698,2]
[351796183,1738791045006,-500.0,0.00013698,2]
[351796184,1738791045016,-500.0,0.00013698,2]
[351796185,1738791045027,-736.28,0.00013698,2]
[351796186,1738791045037,-500.0,0.00013698,2]
[351796187,1738791045047,-500.0,0.00013698,2]
[351796188,1738791045057,-643.74,0.00013698,2]
[351796189,1738791045068,-961.16,0.00013698,2]
[351796190,1738791045079,-652.34,0.00013698,2]
[351796191,1738791045089,-2919.62,0.00013698,2]
[351796192,1738791045099,-500.0,0.00013698,2]
[351796193,1738791045108,-500.0,0.00013698,2]
[351796194,1738791045118,-2982.9,0.00013698,2]
[351796195,1738791045129,-1459.2,0.00013698,2]
[351796196,1738791045139,-3017.83,0.00013698,2]
[351796197,1738791045149,-3017.83,0.00013698,2]
[351796198,1738791045160,-3017.83,0.00013698,2]
[351796199,1738791045171,-3017.83,0.00013698,2]
[351796200,1738791045320,-3017.83,0.00013698,2]
[351796201,1738791045331,-3017.83,0.00013698,2]
[351796202,1738791045341,-3017.83,0.00013698,2]
[351796203,1738791045352,-3017.83,0.00013698,2]
[351796204,1738791045362,-3017.83,0.00013698,2]
[351796205,1738791045372,-3017.83,0.00013698,2]
[351796206,1738791045381,-1252.1,0.00013698,2]
[351796207,1738791045390,-3017.83,0.00013698,2]
[351796208,1738791045399,-3017.83,0.00013698,2]
[351796209,1738791045409,-500.0,0.00013698,2]
[351796210,1738791045418,-3017.83,0.00013698,2]
[351796211,1738791045428,-3017.83,0.00013698,2]
[351796212,1738791045438,-3017.83,0.00013698,2]
[351796213,1738791045448,-3017.83,0.00013698,2]
[351796214,1738791045458,-500.0,0.00013698,2]
[351796215,1738791045468,-3017.83,0.00013698,2]
[351796216,1738791045478,-3017.83,0.00013698,2]
[351796217,1738791045490,-3017.83,0.00013698,2]
[351796218,1738791045500,-500.0,0.00013698,2]
[351796219,1738791045510,-3017.83,0.00013698,2]
[351796220,1738791045519,-3017.83,0.00013698,2]
[351796221,1738791045528,-3017.83,0.00013698,2]
[351796222,1738791045538,-3017.83,0.00013698,2]
[351796223,1738791045547,-3017.91,0.00013698,2]
[351796224,1738791045558,-500.0,0.00013698,2]
[351796225,1738791045568,-500.0,0.00013698,2]
[351796226,1738791045578,-500.0,0.00013698,2]
[351796227,1738791045588,-500.0,0.00013698,2]
[351796228,1738791045597,-528.02,0.00013698,2]
[351796229,1738791045607,-500.0,0.00013698,2]
[351796230,1738791045617,-581.83,0.00013698,2]
[351796231,1738791045627,-500.0,0.00013698,2]
[351796232,1738791045636,-1508.32,0.00013698,2]
[351796233,1738791045651,-500.0,0.00013698,2]
[351796234,1738791045660,-501.76393492,0.00013698,2]
[351796235,1738791045670,-500.0,0.00013698,2]
[351796236,1738791045680,-500.0,0.00013698,2]
[351796237,1738791045690,-500.0,0.00013698,2]
[351796238,1738791045701,-668.78,0.00013698,2]
[351796239,1738791045711,-500.0,0.00013698,2]
[351796240,1738791045721,-781.77,0.00013698,2]
[351796241,1738791045731,-500.0,0.00013698,2]
[351796242,1738791045742,-500.0,0.00013698,2]
[351796243,1738791045752,-500.0,0.00013698,2]
[351796244,1738791045762,-615.74,0.00013698,2]
[351796245,1738791045771,-589.48,0.00013698,2]
[351796246,1738791045782,-500.0,0.00013698,2]
[351796247,1738791045792,-193.79229967,0.00013698,2]
[351796248,1738791045802,-500.0,0.00013698,2]
[351796249,1738791045812,-1225.16,0.00013698,2]
[351796250,1738791045822,-500.0,0.00013698,2]
[351796251,1738791045832,-500.0,0.00013698,2]
[351796252,1738791045842,-500.0,0.00013698,2]
[351796253,1738791045850,-500.0,0.00013698,2]
[351796254,1738791045860,-500.0,0.00013698,2]
[351796255,1738791045869,-1034.21,0.00013698,2]
[351796256,1738791045879,-1087.53,0.00013698,2]
[351796257,1738791045889,-500.0,0.00013698,2]
[351796258,1738791045899,-3719.08,0.00013698,2]
[351796259,1738791045909,-500.0,0.00013698,2]
[351796260,1738791045919,-766.14,0.00013698,2]
[351796261,1738791045929,-651.64,0.00013698,2]
[351796262,1738791045939,-500.0,0.00013698,2]
[351796263,1738791045949,-500.0,0.00013698,2]
[351796264,1738791045960,-500.0,0.00013698,2]
[351796265,1738791045970,-647.71755536,0.00013698,2]
[351796266,1738791045980,-572.17,0.00013698,2]
[351796267,1738791045991,-500.0,0.00013698,2]
[351796268,1738791046001,-188.0,0.00013698,2]
[351796269,1738791046012,-500.0,0.00013698,2]
[351796270,1738791046022,-500.0,0.00013698,2]
[351796271,1738791046032,-513.37,0.00013698,2]
[351796272,1738791046042,-500.0,0.00013698,2]
[351796273,1738791046052,-500.0,0.00013698,2]
[351796274,1738791046062,-500.0,0.00013698,2]
[351796275,1738791046072,-460.53401954,0.00013698,2]
[351796276,1738791046082,-4864.09,0.00013698,2]
[351796277,1738791046091,-1550.21,0.00013698,2]
[351796278,1738791046101,-500.0,0.00013698,2]
[351796279,1738791046111,-902.1,0.00013698,2]
[351796280,1738791046120,-504.46962706,0.00013698,2]
[351796281,1738791046130,-500.0,0.00013698,2]
[351796282,1738791046141,-945.39,0.00013698,2]
[351796283,1738791046151,-408.81377868,0.00013698,2]
[351796284,1738791046160,-505.19265801,0.00013698,2]
[351796285,1738791046170,-500.0,0.00013698,2]
[351796286,1738791046180,-500.0,0.00013698,2]
[351796287,1738791046189,-500.0,0.00013698,2]
[351796288,1738791046199,-500.0,0.00013698,2]
[351796289,1738791046209,-2785.03,0.00013698,2]
[351796291,1738791046218,-201.90177402,0.00013698,2]
[351796292,1738791046228,-500.0,0.00013698,2]
[351796293,1738791046238,-1000.0,0.00013698,2]
[351796294,1738791046247,-500.0,0.00013698,2]
[351796295,1738791046257,-11898.98,0.00013698,2]
[351796296,1738791046267,-503.16944459,0.00013698,2]
[351796297,1738791046276,-500.0,0.00013698,2]
[351796298,1738791046287,-572.23,0.00013698,2]
[351796299,1738791046297,-500.0,0.00013698,2]
[351796300,1738791046306,-500.0,0.00013698,2]
[351796301,1738791046316,-503.49486909,0.00013698,2]
[351796302,1738791046326,-640.09,0.00013698,2]
[351796303,1738791046336,-2299.81,0.00013698,2]
[351796304,1738791046346,-500.0,0.00013698,2]
[351796305,1738791046357,-500.0,0.00013698,2]
[351796306,1738791046367,-500.0,0.00013698,2]
[351796307,1738791046377,-657.59,0.00013698,2]
[351796308,1738791046388,-501.83177931,0.00013698,2]
[351796309,1738791046398,-505.61923189,0.00013698,2]
[351796311,1738791046409,-8095.86,0.00013698,2]
[351796313,1738791046419,-500.0,0.00013698,2]
[351796315,1738791046429,-500.0,0.00013698,2]
[351796317,1738791046438,-2617.77,0.00013698,2]
[351796319,1738791046449,-1502.48,0.00013698,2]
[351796321,1738791046458,-1047.41,0.00013698,2]
[351796323,1738791046468,-500.0,0.00013698,2]
[351796325,1738791046479,-500.0,0.00013698,2]
[351796327,1738791046491,-500.0,0.00013698,2]
[351796329,1738791046500,-505.7492854,0.00013698,2]
[351796331,1738791046509,-1340.58,0.00013698,2]
[351796333,1738791046519,-500.0,0.00013698,2]
[351796335,1738791046528,-500.0,0.00013698,2]
[351796337,1738791046538,-869.47,0.00013698,2]
[351796339,1738791046547,-500.0,0.00013698,2]
[351796341,1738791046557,-500.0,0.00013698,2]
[351796343,1738791046567,-6032.47,0.00013698,2]
[351796345,1738791046577,-1117.41,0.00013698,2]
[351796347,1738791046586,-500.0,0.00013698,2]
[351796349,1738791046596,-500.0,0.00013698,2]
[351796351,1738791046606,-500.0,0.00013698,2]
[351796352,1738791046615,-500.0,0.00013698,2]
[351796353,1738791046624,-500.0,0.00013698,2]
[351796354,1738791046633,-1450.83,0.00013698,2]
[351796355,1738791046644,-500.0,0.00013698,2]
[351796356,1738791046655,-500.0,0.00013698,2]
[351796357,1738791046664,-2701.31,0.00013698,2]
[351796358,1738791046673,-597.13142421,0.00013698,2]
[351796359,1738791046684,-512.42,0.00013698,2]
[351796360,1738791046694,-500.0,0.00013698,2]
[351796361,1738791046703,-500.0,0.00013698,2]
[351796362,1738791046712,-500.0,0.00013698,2]
[351796363,1738791046724,-500.0,0.00013698,2]
[351796364,1738791046733,-500.0,0.00013698,2]
[351796365,1738791046744,-1927.17,0.00013698,2]
[351796366,1738791046754,-1927.17,0.00013698,2]
[351796367,1738791046763,-1927.17,0.00013698,2]
[351796368,1738791046772,-1927.17,0.00013698,2]
[351796369,1738791046781,-1927.17,0.00013698,2]
[351796370,1738791046791,-500.0,0.00013698,2]
[351796372,1738791046800,-1927.17,0.00013698,2]
[351796374,1738791046809,-1927.17,0.00013698,2]
[351796376,1738791046819,-1927.17,0.00013698,2]
[351796378,1738791046829,-527.51,0.00013698,2]
[351796380,1738791046838,-1927.17,0.00013698,2]
[351796382,1738791046848,-1927.17,0.00013698,2]
[351796384,1738791046858,-465.23924765,0.00013698,2]
[351796386,1738791046867,-34623.88,0.00013698,2]
[351796388,1738791046877,-1927.17,0.00013698,2]
[351796390,1738791046886,-1927.17,0.00013698,2]
[351796392,1738791046896,-1927.17,0.00013698,2]
[351796394,1738791046906,-1927.17,0.00013698,2]
[351796396,1738791046916,-1927.17,0.00013698,2]
[351796398,1738791046925,-1927.17,0.00013698,2]
[351796400,1738791046935,-1927.17,0.00013698,2]
[351796402,1738791046944,-1927.17,0.00013698,2]
[351796404,1738791046954,-1927.17,0.00013698,2]
[351796406,1738791046964,-500.0,0.00013698,2]
[351796408,1738791046973,-1927.17,0.00013698,2]
[351796410,1738791046983,-500.0,0.00013698,2]
[351796412,1738791046994,-500.0,0.00013698,2]
[351796414,1738791047003,-1927.17,0.00013698,2]
[351796416,1738791047013,-1927.17,0.00013698,2]
[351796418,1738791047022,-1927.17,0.00013698,2]
[351796420,1738791047031,-1927.33,0.00013698,2]
[351796422,1738791047040,-1601.99,0.00013698,2]
[351796424,1738791047050,-500.0,0.00013698,2]
[351796426,1738791047059,-2396.46,0.00013698,2]
[351796428,1738791047068,-500.0,0.00013698,2]
[351796430,1738791047077,-1041.96,0.00013698,2]
[351796432,1738791047086,-500.0,0.00013698,2]
[351796434,1738791047095,-500.0,0.00013698,2]
[351796436,1738791047104,-500.0,0.00013698,2]
[351796438,1738791047113,-4508.7,0.00013698,2]
[351796440,1738791047122,-500.0,0.00013698,2]
[351796442,1738791047131,-500.0,0.00013698,2]
[351796444,1738791047141,-5978.7,0.00013698,2]
[351796446,1738791047150,-5574.75,0.00013698,2]
[351796448,1738791047159,-500.0,0.00013698,2]
[351796450,1738791047167,-591.05,0.00013698,2]
[351796452,1738791047176,-500.0,0.00013698,2]
[351796454,1738791047185,-500.0,0.00013698,2]
[351796456,1738791047194,-500.0,0.00013698,2]
[351796458,1738791047203,-974.77,0.00013698,2]
[351796460,1738791047212,-500.0,0.00013698,2]
[351796462,1738791047221,-10781.86,0.00013698,2]
[351796464,1738791047230,-500.0,0.00013698,2]
[351796466,1738791047241,-657.56,0.00013698,2]
[351796468,1738791047250,-1789.49,0.00013698,2]
[351796470,1738791047261,-500.0,0.00013698,2]
[351796471,1738791047272,-439.00348576,0.00013698,2]
[351796473,1738791047283,-500.0,0.00013698,2]
[351796474,1738791047292,-626.18,0.00013698,2]
[351796476,1738791047303,-7299.39,0.00013698,2]
[351796478,1738791047313,-500.0,0.00013698,2]
[351796480,1738791047323,-500.0,0.00013698,2]
[351796482,1738791047333,-2541.07,0.00013698,2]
[351796483,1738791047342,-500.0,0.00013698,2]
[351796485,1738791047351,-1015.89,0.00013698,2]
[351796487,1738791047362,-500.0,0.00013698,2]
[351796489,1738791047371,-906.83,0.00013698,2]
[351796491,1738791047380,-521.34,0.00013698,2]
[351796493,1738791047390,-500.0,0.00013698,2]
[351796495,1738791047399,-2562.04,0.00013698,2]
[351796497,1738791047408,-500.0,0.00013698,2]
[351796499,1738791047417,-500.0,0.00013698,2]
[351796501,1738791047427,-500.0,0.00013698,2]
[351796504,1738791047438,-567.6,0.00013698,2]
[351796506,1738791047447,-500.0,0.00013698,2]
[351796508,1738791047457,-500.0,0.00013698,2]
[351796510,1738791047466,-500.0,0.00013698,2]
[351796512,1738791047475,-878.38,0.00013698,2]
[351796514,1738791047484,-512.9,0.00013698,2]
[351796516,1738791047495,-500.0,0.00013698,2]
[351796517,1738791047504,-500.0,0.00013698,2]
[351796519,1738791047513,-500.0,0.00013698,2]
[351796521,1738791047523,-7364.87,0.00013698,2]
[351796539,1738791047672,-222.15928418,0.00013698,2]
[351796541,1738791047683,-500.0,0.00013698,2]
[351796543,1738791047694,-2614.72,0.00013698,2]
[351796545,1738791047704,-519.75081571,0.00013698,2]
[351796547,1738791047714,-500.0,0.00013698,2]
[351796549,1738791047725,-500.0,0.00013698,2]
[351796551,1738791047738,-500.0,0.00013698,2]
[351796553,1738791047748,-2816.47,0.00013698,2]
[351796555,1738791047758,-3821.43,0.00013698,2]
[351796557,1738791047768,-500.0,0.00013698,2]
[351796559,1738791047778,-500.0,0.00013698,2]